fUST/lending_fUST_20240625
["ID","MTS","AMOUNT","RATE_DAILY","PERIOD"]
[330339745,1719263447618,-500.0,0.00016986,2]
[330339746,1719263447627,-500.0,0.00016986,2]
[330339747,1719263447636,-985.13,0.00016986,2]
[330339748,1719263447646,-1256.18,0.00016986,2]
[330339749,1719263447852,-500.0,0.00016986,2]
[330339750,1719263447871,-500.0,0.00016986,2]
[330339751,1719263447884,-500.0,0.00016986,2]
[330339752,1719263447895,-500.0,0.00016986,2]
[330339753,1719263447908,-500.0,0.00016986,2]
[330339754,1719263447919,-339.047468,0.00016986,2]
[330339755,1719263447930,-500.0,0.00016986,2]
[330339756,1719263447941,-500.0,0.00016986,2]
[330339757,1719263447951,-500.0,0.00016986,2]
[330339758,1719263447961,-500.0,0.00016986,2]
[330339759,1719263447971,-500.0,0.00016986,2]
[330339760,1719263447980,-500.0,0.00016986,2]
[330339761,1719263447990,-500.0,0.00016986,2]
[330339762,1719263447999,-525.75919218,0.00016986,2]
[330339763,1719263448009,-949.33,0.00016986,2]
[330339764,1719263448019,-500.0,0.00016986,2]
[330339765,1719263448029,-500.0,0.00016986,2]
[330339766,1719263448038,-500.0,0.00016986,2]
[330339767,1719263448047,-1048.1,0.00016986,2]
[330339768,1719263448057,-500.0,0.00016986,2]
[330339769,1719263448066,-500.0,0.00016986,2]
[330339770,1719263448076,-500.0,0.00016986,2]
[330339771,1719263448085,-500.0,0.00016986,2]
[330339772,1719263448094,-250.0,0.00016986,2]
[330339773,1719263448106,-500.0,0.00016986,2]
[330339774,1719263448115,-500.0,0.00016986,2]
[330339775,1719263448125,-501.32,0.00016986,2]
[330339776,1719263448135,-21369.33,0.00016986,2]
[330339777,1719263448145,-500.0,0.00016986,2]
[330339778,1719263448155,-500.0,0.00016986,2]
[330339779,1719263448165,-525.11782455,0.00016986,2]
[330339780,1719263448174,-500.0,0.00016986,2]
[330339781,1719263448183,-500.0,0.00016986,2]
[330339782,1719263448193,-2086.43,0.00016986,2]
[330339783,1719263448203,-3732.57,0.00016986,2]
[330339784,1719263448212,-500.0,0.00016986,2]
[330339785,1719263448222,-500.0,0.00016986,2]
[330339786,1719263448231,-500.0,0.00016986,2]
[330339787,1719263448241,-580.06,0.00016986,2]
[330339788,1719263448250,-2689.9,0.00016986,2]
[330339789,1719263448260,-500.0,0.00016986,2]
[330339790,1719263448269,-500.0,0.00016986,2]
[330339791,1719263448278,-500.0,0.00016986,2]
[330339792,1719263448288,-500.0,0.00016986,2]
[330339793,1719263448297,-2347.2194791,0.00016986,2]
[330339794,1719263448448,-1937.0805209,0.00016986,2]
[330339795,1719263448458,-561.16,0.00016986,2]
[330339796,1719263448469,-317.37280619,0.00016986,2]
[330339797,1719263448479,-500.0,0.00016986,2]
[330339798,1719263448488,-500.0,0.00016986,2]
[330339799,1719263448498,-832.69,0.00016986,2]
[330339800,1719263448507,-1028.05,0.00016986,2]
[330339801,1719263448517,-1035.56,0.00016986,2]
[330339802,1719263448526,-500.0,0.00016986,2]
[330339803,1719263448536,-500.0,0.00016986,2]
[330339804,1719263448545,-500.0,0.00016986,2]
[330339805,1719263448555,-720.35,0.00016986,2]
[330339806,1719263448565,-500.0,0.00016986,2]
[330339807,1719263448575,-500.0,0.00016986,2]
[330339808,1719263448584,-500.0,0.00016986,2]
[330339809,1719263448594,-529.15,0.00016986,2]
[330339810,1719263448603,-790.57,0.00016986,2]
[330339811,1719263448612,-6940.99,0.00016986,2]
[330339812,1719263448622,-500.0,0.00016986,2]
[330339813,1719263448631,-500.0,0.00016986,2]
[330339814,1719263448640,-586.62,0.00016986,2]
[330339815,1719263448649,-500.0,0.00016986,2]
[330339816,1719263448661,-500.0,0.00016986,2]
[330339817,1719263448672,-544.98,0.00016986,2]
[330339818,1719263448681,-500.0,0.00016986,2]
[330339819,1719263448690,-500.0,0.00016986,2]
[330339820,1719263448700,-500.0,0.00016986,2]
[330339821,1719263448709,-500.0,0.00016986,2]
[330339822,1719263448718,-277.60786353,0.00016986,2]
[330339823,1719263448728,-2528.19,0.00016986,2]
[330339824,1719263448737,-500.0,0.00016986,2]
[330339825,1719263448747,-500.0,0.00016986,2]
[330339826,1719263448757,-500.0,0.00016986,2]
[330339827,1719263448767,-1458.28,0.00016986,2]
[330339828,1719263448777,-841.98,0.00016986,2]
[330339829,1719263448786,-852.67,0.00016986,2]
[330339830,1719263448796,-500.0,0.00016986,2]
[330339831,1719263448806,-722.9,0.00016986,2]
[330339832,1719263448816,-500.0,0.00016986,2]
[330339833,1719263448826,-500.0,0.00016986,2]
[330339834,1719263448836,-5420.42,0.00016986,2]
[330339835,1719263448845,-500.0,0.00016986,2]
[330339836,1719263448856,-1106.47,0.00016986,2]
[330339837,1719263448866,-500.0,0.00016986,2]
[330339838,1719263448875,-500.0,0.00016986,2]
[330339839,1719263448885,-556.04,0.00016986,2]
[330339840,1719263448894,-6641.42,0.00016986,2]
[330339841,1719263448905,-500.0,0.00016986,2]
[330339842,1719263448914,-500.0,0.00016986,2]
[330339843,1719263448923,-1684.68,0.00016986,2]
[330339844,1719263448932,-11191.81,0.00016986,2]
[330339845,1719263448941,-500.0,0.00016986,2]
[330339846,1719263448951,-736.38,0.00016986,2]
[330339847,1719263448960,-1049.36,0.00016986,2]
[330339848,1719263448970,-500.0,0.00016986,2]
[330339849,1719263448979,-500.0,0.00016986,2]
[330339850,1719263448988,-2970.92,0.00016986,2]
[330339851,1719263448997,-500.0,0.00016986,2]
[330339852,1719263449006,-500.0,0.00016986,2]
[330339853,1719263449016,-500.0,0.00016986,2]
[330339854,1719263449026,-906.19,0.00016986,2]
[330339855,1719263449035,-7797.89,0.00016986,2]
[330339856,1719263449045,-514.42,0.00016986,2]
[330339857,1719263449054,-2046.87286215,0.00016986,2]
[330339858,1719263449164,-500.0,0.00016438,2]
[330339859,1719263449174,-500.0,0.00016438,2]
[330339860,1719263449183,-442.28713785,0.00016986,2]
[330339861,1719263449192,-545.18799876,0.00016986,2]
[330339862,1719263449448,-1284.46803157,0.00015119,2]
[330339863,1719263449461,-228.6642487,0.00015926,2]
[330339864,1719263449471,-500.0,0.00016438,2]
[330339865,1719263449481,-500.0,0.00016438,2]
[330339866,1719263449491,-500.0,0.00016712,2]
[330339867,1719263449500,-500.0,0.00016712,2]
[330339868,1719263449510,-240.84578239,0.00016835,2]
[330339869,1719263449519,-1335.32200124,0.00016986,2]
[330339870,1719263449529,-500.0,0.00016986,2]
[330339871,1719263449539,-500.0,0.00016986,2]
[330339872,1719263449548,-500.0,0.00016986,2]
[330339873,1719263449559,-500.0,0.00016986,2]
[330339874,1719263449568,-500.0,0.00016986,2]
[330339875,1719263449578,-2266.18,0.00016986,2]
[330339876,1719263449588,-500.0,0.00016986,2]
[330339877,1719263449598,-500.0,0.00016986,2]
[330339878,1719263449608,-601.24839308,0.00016986,2]
[330339879,1719263449618,-500.0,0.00016986,2]
[330339880,1719263449628,-500.0,0.00016986,2]
[330339881,1719263449639,-1024.87,0.00016986,2]
[330339882,1719263449649,-261.12071475,0.00016986,2]
[330339883,1719263449661,-500.0,0.00016986,2]
[330339884,1719263449670,-500.0,0.00016986,2]
[330339885,1719263449680,-500.0,0.00016986,2]
[330339886,1719263449690,-500.0,0.00016986,2]
[330339887,1719263449700,-446.36,0.00016986,2]
[330339888,1719263449709,-500.0,0.00016986,2]
[330339889,1719263449720,-240.1937436,0.00016986,2]
[330339890,1719263449729,-876.0,0.0001718,2]
[330339891,1719263449739,-231.615,0.00017184,2]
[330339892,1719263449749,-150.0,0.00017184,2]
[330339893,1719263449758,-500.0,0.00017259,2]
[330339894,1719263449767,-500.0,0.00017259,2]
[330339895,1719263449777,-500.0,0.00017259,2]
[330339896,1719263449786,-500.0,0.00017259,2]
[330339897,1719263449796,-500.0,0.0001726,2]
[330339898,1719263449806,-500.0,0.0001726,2]
[330339899,1719263449815,-500.0,0.0001726,2]
[330339900,1719263449825,-500.0,0.0001726,2]
[330339901,1719263449834,-500.0,0.0001726,2]
[330339902,1719263449843,-305.16458433,0.0001726,2]
[330339903,1719263449854,-500.0,0.0001726,2]
[330339904,1719263449864,-500.0,0.0001726,2]
[330339905,1719263449873,-371.55952537,0.0001726,2]
[330339906,1719263449883,-697.8,0.0001726,2]
[330339907,1719263449892,-546.62497122,0.0001726,2]
[330339908,1719263449901,-500.0,0.0001726,2]
[330339909,1719263449915,-500.0,0.0001726,2]
[330339910,1719263449926,-637.73,0.0001726,2]
[330339911,1719263449934,-278.57855104,0.0001726,2]
[330339912,1719263449946,-500.0,0.0001726,2]
[330339913,1719263449955,-500.0,0.0001726,2]
[330339914,1719263449965,-500.0,0.0001726,2]
[330339915,1719263449974,-934.35,0.0001726,2]
[330339916,1719263449984,-567.61,0.0001726,2]
[330339917,1719263449994,-869.12,0.0001726,2]
[330339918,1719263450004,-1026.18,0.0001726,2]
[330339919,1719263450015,-500.0,0.0001726,2]
[330339920,1719263450025,-500.0,0.0001726,2]
[330339921,1719263450034,-500.0,0.0001726,2]
[330339922,1719263450044,-500.0,0.0001726,2]
[330339923,1719263450053,-500.0,0.0001726,2]
[330339924,1719263450063,-182.08695266,0.0001726,2]
[330339925,1719263450076,-638.60304734,0.0001726,2]
[330339926,1719263450086,-500.0,0.0001726,2]
[330339927,1719263450095,-675.44,0.0001726,2]
[330339928,1719263450105,-500.0,0.0001726,2]
[330339929,1719263450115,-500.0,0.0001726,2]
[330339930,1719263450124,-500.0,0.0001726,2]
[330339931,1719263450133,-82.45695266,0.0001726,2]
[330339932,1719263450146,-417.54304734,0.0001726,2]
[330339933,1719263450157,-500.0,0.0001726,2]
[330339934,1719263450167,-518.59,0.0001726,2]
[330339935,1719263450176,-500.0,0.0001726,2]
[330339936,1719263450186,-500.0,0.0001726,2]
[330339937,1719263450195,-500.0,0.0001726,2]
[330339938,1719263450205,-500.0,0.0001726,2]
[330339939,1719263450214,-167.46644958,0.0001726,2]
[330339940,1719263450225,-500.0,0.0001726,2]
[330339941,1719263450235,-985.13,0.0001726,2]
[330339942,1719263450244,-1256.18,0.0001726,2]
[330339943,1719263450253,-500.0,0.0001726,2]
[330339944,1719263450263,-500.0,0.0001726,2]
[330339945,1719263450272,-500.0,0.0001726,2]
[330339946,1719263450282,-500.0,0.0001726,2]
[330339947,1719263450293,-284.91399945,0.0001726,2]
[330339948,1719263450302,-212.72810922,0.0001726,2]
[330339949,1719263450312,-274.32958857,0.0001726,2]
[330339950,1719263450321,-500.0,0.0001726,2]
[330339951,1719263450330,-500.0,0.0001726,2]
[330339952,1719263450340,-500.0,0.0001726,2]
[330339953,1719263450349,-500.0,0.0001726,2]
[330339954,1719263450359,-500.0,0.0001726,2]
[330339955,1719263450374,-949.33,0.0001726,2]
[330339956,1719263450383,-371.43787981,0.0001726,2]
[330339957,1719263450393,-500.0,0.0001726,2]
[330339958,1719263450403,-1048.1,0.0001726,2]
[330339959,1719263450417,-500.0,0.0001726,2]
[330339960,1719263450426,-500.0,0.0001726,2]
[330339961,1719263450440,-500.0,0.0001726,2]
[330339962,1719263450453,-362.22357731,0.0001726,2]
[330339963,1719263450465,-501.32,0.0001726,2]
[330339964,1719263450474,-21369.33,0.0001726,2]
[330339965,1719263450484,-500.0,0.0001726,2]
[330339966,1719263450493,-500.0,0.0001726,2]
[330339967,1719263450502,-500.0,0.0001726,2]
[330339968,1719263450512,-500.0,0.0001726,2]
[330339969,1719263450521,-2086.43,0.0001726,2]
[330339970,1719263450530,-3732.57,0.0001726,2]
[330339971,1719263450540,-500.0,0.0001726,2]
[330339972,1719263450549,-500.0,0.0001726,2]
[330339973,1719263450559,-500.0,0.0001726,2]
[330339974,1719263450568,-580.06,0.0001726,2]
[330339975,1719263450577,-2689.9,0.0001726,2]
[330339976,1719263450587,-500.0,0.0001726,2]
[330339977,1719263450596,-500.0,0.0001726,2]
[330339978,1719263450606,-500.0,0.0001726,2]
[330339979,1719263450615,-500.0,0.0001726,2]
[330339980,1719263450625,-4284.3,0.0001726,2]
[330339981,1719263450634,-561.16,0.0001726,2]
[330339982,1719263450644,-500.0,0.0001726,2]
[330339983,1719263450654,-601.60671087,0.0001726,2]
[330339984,1719263450666,-832.69,0.0001726,2]
[330339985,1719263450676,-1028.05,0.0001726,2]
[330339986,1719263450685,-1035.56,0.0001726,2]
[330339987,1719263450695,-500.0,0.0001726,2]
[330339988,1719263450704,-500.0,0.0001726,2]
[330339989,1719263450713,-500.0,0.0001726,2]
[330339990,1719263450723,-720.35,0.0001726,2]
[330339991,1719263450732,-500.0,0.0001726,2]
[330339992,1719263450742,-504.99025067,0.0001726,2]
[330339993,1719263450751,-500.0,0.0001726,2]
[330339994,1719263450761,-529.15,0.0001726,2]
[330339995,1719263450770,-790.57,0.0001726,2]
[330339996,1719263450780,-6940.99,0.0001726,2]
[330339997,1719263450789,-500.0,0.0001726,2]
[330339998,1719263450799,-505.5921389,0.0001726,2]
[330339999,1719263450808,-586.62,0.0001726,2]
[330340000,1719263450818,-500.0,0.0001726,2]
[330340001,1719263450828,-500.0,0.0001726,2]
[330340002,1719263450838,-544.98,0.0001726,2]
[330340003,1719263450847,-500.0,0.0001726,2]
[330340004,1719263450857,-500.0,0.0001726,2]
[330340005,1719263450867,-500.0,0.0001726,2]
[330340006,1719263450877,-2528.19,0.0001726,2]
[330340007,1719263450886,-500.0,0.0001726,2]
[330340008,1719263450896,-618.99845004,0.0001726,2]
[330340009,1719263450906,-500.0,0.0001726,2]
[330340010,1719263450915,-1458.28,0.0001726,2]
[330340011,1719263450925,-841.98,0.0001726,2]
[330340012,1719263450934,-852.67,0.0001726,2]
[330340013,1719263451077,-722.9,0.0001726,2]
[330340014,1719263451088,-500.0,0.0001726,2]
[330340015,1719263451098,-500.0,0.0001726,2]
[330340016,1719263451108,-5420.42,0.0001726,2]
[330340017,1719263451118,-500.0,0.0001726,2]
[330340018,1719263451128,-1106.47,0.0001726,2]
[330340019,1719263451138,-500.0,0.0001726,2]
[330340020,1719263451148,-500.0,0.0001726,2]
[330340021,1719263451159,-556.04,0.0001726,2]
[330340022,1719263451168,-6641.42,0.0001726,2]
[330340023,1719263451177,-500.0,0.0001726,2]
[330340024,1719263451186,-604.28131098,0.0001726,2]
[330340025,1719263451195,-1684.68,0.0001726,2]
[330340026,1719263451205,-11191.81,0.0001726,2]
[330340027,1719263451214,-500.0,0.0001726,2]
[330340028,1719263451223,-1049.36,0.0001726,2]
[330340029,1719263451234,-736.38,0.0001726,2]
[330340030,1719263451243,-559.41159594,0.0001726,2]
[330340031,1719263451253,-500.0,0.0001726,2]
[330340032,1719263451263,-2970.92,0.0001726,2]
[330340033,1719263451272,-500.0,0.0001726,2]
[330340034,1719263451282,-500.0,0.0001726,2]
[330340035,1719263451291,-906.19,0.0001726,2]
[330340036,1719263451301,-7797.89,0.0001726,2]
[330340037,1719263451310,-514.42,0.0001726,2]
[330340038,1719263451320,-2489.16,0.0001726,2]
[330340039,1719263451329,-1880.51,0.0001726,2]
[330340040,1719263451339,-500.0,0.0001726,2]
[330340041,1719263451348,-500.0,0.0001726,2]
[330340042,1719263451358,-500.0,0.0001726,2]
[330340043,1719263451367,-500.0,0.0001726,2]
[330340044,1719263451377,-500.0,0.0001726,2]
[330340045,1719263451391,-2266.18,0.0001726,2]
[330340046,1719263451401,-500.0,0.0001726,2]
[330340047,1719263451413,-500.0,0.0001726,2]
[330340048,1719263451423,-500.0,0.0001726,2]
[330340049,1719263451432,-1024.87,0.0001726,2]
[330340050,1719263451441,-500.0,0.0001726,2]
[330340051,1719263451451,-500.0,0.0001726,2]
[330340052,1719263451462,-409.3258337,0.0001726,2]
[330340053,1719263451471,-500.0,0.0001726,2]
[330340054,1719263451481,-308.9354042,0.0001726,2]
[330340055,1719263451490,-500.0,0.00017533,2]
[330340056,1719263451499,-500.0,0.00017533,2]
[330340057,1719263451508,-500.0,0.00017533,2]
[330340058,1719263451518,-500.0,0.00017533,2]
[330340059,1719263451527,-336.26,0.00017533,2]
[330340060,1719263451538,-500.0,0.00017534,2]
[330340061,1719263451547,-500.0,0.00017534,2]
[330340062,1719263451557,-500.0,0.00017534,2]
[330340063,1719263451567,-459.6193062,0.00017534,2]
[330340064,1719263451576,-500.0,0.00017534,2]
[330340065,1719263451586,-500.0,0.00017534,2]
[330340066,1719263451595,-500.0,0.00017534,2]
[330340067,1719263451604,-697.8,0.00017534,2]
[330340068,1719263451614,-500.0,0.00017534,2]
[330340069,1719263451624,-500.0,0.00017534,2]
[330340070,1719263451634,-500.0,0.00017534,2]
[330340071,1719263451644,-934.35,0.00017534,2]
[330340072,1719263451653,-567.61,0.00017534,2]
[330340073,1719263451664,-869.12,0.00017534,2]
[330340074,1719263451674,-1026.18,0.00017534,2]
[330340075,1719263451683,-370.93341129,0.00017534,2]
[330340076,1719263451692,-500.0,0.00017534,2]
[330340077,1719263451702,-500.0,0.00017534,2]
[330340078,1719263451711,-500.0,0.00017534,2]
[330340079,1719263451721,-500.0,0.00017534,2]
[330340080,1719263451731,-820.69,0.00017534,2]
[330340081,1719263451741,-500.0,0.00017534,2]
[330340082,1719263451750,-675.44,0.00017534,2]
[330340083,1719263451760,-500.0,0.00017534,2]
[330340084,1719263451770,-500.0,0.00017534,2]
[330340085,1719263451779,-500.0,0.00017534,2]
[330340086,1719263451788,-500.0,0.00017534,2]
[330340087,1719263451798,-518.59,0.00017534,2]
[330340088,1719263451807,-500.0,0.00017534,2]
[330340089,1719263451816,-500.0,0.00017534,2]
[330340090,1719263451825,-500.0,0.00017534,2]
[330340091,1719263451835,-500.0,0.00017534,2]
[330340092,1719263451844,-473.09123127,0.00017534,2]
[330340093,1719263451853,-985.13,0.00017534,2]
[330340094,1719263451862,-1256.18,0.00017534,2]
[330340095,1719263451871,-500.0,0.00017534,2]
[330340096,1719263451880,-500.0,0.00017534,2]
[330340097,1719263451890,-202.27564393,0.00017534,2]
[330340098,1719263458276,10000.0,0.00014,2]
[330340099,1719263514562,4690.36708649,0.00014,2]
[330340100,1719263547451,1906.82277349,0.0001,2]
[330340101,1719263552683,203.73904152,0.00014,2]
[330340102,1719263552723,5315.93578384,0.00014,2]
[330340103,1719263596545,4690.36708649,0.00014,2]
[330340104,1719263622765,157.894736,0.00013699,2]
[330340105,1719263641124,273.37336231,9.9e-05,2]
[330340106,1719263648044,193.75,0.00010959,2]
[330340107,1719263651458,273.37336231,9.9e-05,2]
[330340108,1719263659971,273.37336231,9.9e-05,2]
[330340109,1719263667874,273.37336231,9.9e-05,2]
[330340110,1719263676062,273.37336231,9.9e-05,2]
[330340111,1719263684081,273.37336231,9.9e-05,2]
[330340112,1719263692843,273.37336231,9.9e-05,2]
[330340113,1719263701035,273.37336231,9.9e-05,2]
[330340114,1719263709059,4690.36708649,9.9e-05,2]
[330340115,1719263711511,273.37336231,9.9e-05,2]
[330340116,1719263720925,273.37336231,9.9e-05,2]
[330340117,1719263728852,273.37336231,9.9e-05,2]
[330340118,1719263737031,273.37336231,9.9e-05,2]
[330340119,1719263745350,273.37336231,9.9e-05,2]
[330340120,1719263747562,3188.23751116,0.00012,2]
[330340121,1719263753597,273.37336231,9.9e-05,2]
[330340122,1719263762108,273.37336231,9.9e-05,2]
[330340123,1719263771527,273.37336231,9.9e-05,2]
[330340124,1719263779402,273.37336231,9.9e-05,2]
[330340125,1719263788062,273.37336231,9.9e-05,2]
[330340126,1719263795986,273.37336231,9.9e-05,2]
[330340127,1719263804214,273.37336231,9.9e-05,2]
[330340128,1719263815618,273.37336231,9.9e-05,2]
[330340129,1719263824335,273.37336231,9.9e-05,2]
[330340130,1719263833016,273.37336231,9.9e-05,2]
[330340131,1719263841826,273.37336231,9.9e-05,2]
[330340132,1719263849789,273.37336231,9.9e-05,2]
[330340133,1719263857992,273.37336231,9.9e-05,2]
[330340134,1719263865382,1634.23398312,0.00012,2]
[330340135,1719263866412,273.37336231,9.9e-05,2]
[330340136,1719263875937,273.37336231,9.9e-05,2]
[330340137,1719263884422,273.37336231,9.9e-05,2]
[330340138,1719263892674,273.37336231,9.9e-05,2]
[330340139,1719263900821,273.37336231,9.9e-05,2]
[330340140,1719263910117,273.37336231,9.9e-05,2]
[330340141,1719263918690,273.37336231,9.9e-05,2]
[330340142,1719263926936,273.37336231,9.9e-05,2]
[330340143,1719263930177,282.34763471,0.00012,2]
[330340144,1719263930399,283.99109579,0.00012,2]
[330340145,1719263935406,273.37336231,9.9e-05,2]
[330340146,1719263936531,383.19860508,0.00012,2]
[330340147,1719263944267,273.37336231,9.9e-05,2]
[330340148,1719263953354,273.37336231,9.9e-05,2]
[330340149,1719263962068,273.37336231,9.9e-05,2]
[330340150,1719263970484,273.37336231,9.9e-05,2]
[330340151,1719263979844,273.37336231,9.9e-05,2]
[330340152,1719263987768,273.37336231,9.9e-05,2]
[330340153,1719263996502,273.37336231,9.9e-05,2]
[330340154,1719264005605,273.37336231,9.9e-05,2]
[330340157,1719264169370,2594.2029022,0.00013706,2]
[330340163,1719264227887,157.894736,0.00013699,2]
[330340164,1719264263864,408.1288375,0.00013871,2]
[330340165,1719264546155,24900.0,0.00013866,2]
[330340294,1719264639218,-250.0,0.00014149,2]
[330340296,1719264639228,-248.585111,0.00014157,2]
[330340298,1719264639239,-17227.699458,0.0001506,2]
[330340300,1719264639250,-19996.10118708,0.00015061,2]
[330340302,1719264639260,-17227.699458,0.00015062,2]
[330340304,1719264639271,-2351.59885877,0.00015083,2]
[330340306,1719264639282,-183.95823359,0.00015167,4]
[330340308,1719264639292,-1284.46803157,0.00015266,2]
[330340310,1719264639302,-404.87850578,0.00015268,2]
[330340312,1719264639312,-346.49534435,0.00015342,2]
[330340314,1719264639322,-404.87850576,0.00015604,2]
[330340316,1719264639332,-895.20436777,0.00015933,2]
[330340318,1719264639342,-1313.011853,0.00015934,2]
[330340320,1719264639352,-1060.50500218,0.00015939,2]
[330340322,1719264639362,-404.87850576,0.0001594,2]
[330340324,1719264639372,-161.47940905,0.00016104,2]
[330340326,1719264639382,-154.96125969,0.00016104,2]
[330340327,1719264639391,-341.29538515,0.00016104,2]
[330340329,1719264639402,-30000.0,0.00016105,2]
[330340331,1719264639412,-491.33508365,0.00016117,2]
[330340333,1719264639423,-583.07815696,0.0001617,2]
[330340335,1719264639434,-404.87850576,0.00016276,2]
[330340336,1719264639444,-2000.0,0.00016338,2]
[330340339,1719264639454,-500.0,0.00016438,2]
[330340340,1719264639464,-500.0,0.00016438,2]
[330340342,1719264639474,-500.0,0.00016438,2]
[330340344,1719264639484,-159.44194014,0.00016438,2]
[330340346,1719264639493,-508.10294438,0.00016438,2]
[330340348,1719264639504,-500.0,0.00016438,2]
[330340350,1719264639515,-500.0,0.00016438,2]
[330340352,1719264639525,-500.0,0.00016438,2]
[330340354,1719264639534,-500.0,0.00016438,2]
[330340356,1719264639544,-500.0,0.00016438,2]
[330340358,1719264639554,-318.32601055,0.00016438,2]
[330340360,1719264639564,-500.0,0.00016438,2]
[330340362,1719264639575,-316.0421936,0.00016438,2]
[330340364,1719264639585,-500.0,0.00016438,2]
[330340366,1719264639595,-500.0,0.00016438,2]
[330340368,1719264639605,-549.4,0.00016438,2]
[330340370,1719264639614,-500.0,0.00016438,2]
[330340372,1719264639624,-500.0,0.00016438,2]
[330340374,1719264639635,-500.0,0.00016438,2]
[330340376,1719264639645,-500.0,0.00016438,2]
[330340378,1719264639655,-598.68917604,0.00016438,2]
[330340380,1719264639665,-500.0,0.00016438,2]
[330340381,1719264639676,-500.0,0.00016438,2]
[330340383,1719264639686,-500.0,0.00016438,2]
[330340385,1719264639695,-500.0,0.00016438,2]
[330340387,1719264639705,-500.0,0.00016438,2]
[330340389,1719264639715,-500.0,0.00016438,2]
[330340390,1719264639726,-500.0,0.00016438,2]
[330340391,1719264639736,-478.80738534,0.00016438,2]
[330340392,1719264639752,-500.0,0.00016438,2]
[330340393,1719264639761,-250.54608254,0.00016438,2]
[330340394,1719264639771,-525.78592595,0.00016438,2]
[330340395,1719264639781,-500.0,0.00016438,2]
[330340396,1719264639793,-500.0,0.00016438,2]
[330340397,1719264639803,-500.0,0.00016438,2]
[330340398,1719264639813,-500.0,0.00016438,2]
[330340399,1719264639823,-500.0,0.00016438,2]
[330340400,1719264639835,-500.0,0.00016438,2]
[330340401,1719264639846,-500.0,0.00016438,2]
[330340402,1719264639856,-500.0,0.00016438,2]
[330340403,1719264639866,-500.0,0.00016438,2]
[330340404,1719264639876,-500.0,0.00016438,2]
[330340405,1719264639886,-500.0,0.00016438,2]
[330340406,1719264639897,-505.0900718,0.00016438,2]
[330340407,1719264639907,-500.0,0.00016438,2]
[330340408,1719264639917,-418.54173744,0.00016438,2]
[330340409,1719264639928,-530.59640761,0.00016438,2]
[330340410,1719264639938,-500.0,0.00016438,2]
[330340411,1719264639948,-500.0,0.00016438,2]
[330340412,1719264639958,-500.0,0.00016438,2]
[330340413,1719264639968,-500.0,0.00016438,2]
[330340414,1719264639977,-500.0,0.00016438,2]
[330340415,1719264639987,-500.0,0.00016438,2]
[330340416,1719264639998,-500.0,0.00016438,2]
[330340417,1719264640008,-500.0,0.00016438,2]
[330340418,1719264640018,-500.0,0.00016438,2]
[330340419,1719264640028,-500.0,0.00016438,2]
[330340420,1719264640038,-500.0,0.00016438,2]
[330340421,1719264640048,-500.0,0.00016438,2]
[330340422,1719264640058,-500.0,0.00016438,2]
[330340423,1719264640068,-500.0,0.00016438,2]
[330340424,1719264640079,-500.0,0.00016438,2]
[330340425,1719264640089,-502.50622504,0.00016438,2]